Cogmind - Beta 13 @@@ ROGUE MODE // 2024.05.23 @ 04:34:01 Player: KADW Result: Destroyed by H-88 Terminator with KE Penetrator Performance ------------- Evolutions (8) 4000 Regions Visited (14) 2800 Robots Destroyed (55) 275 Value Destroyed (1694) 1694 Prototype IDs (40) 800 Alien Tech Used (5) 1000 Bonus (767) 767 TOTAL SCORE: 11336 Bonus ------- Aligned with FarCom 300 Hacked Protovariant 500 Friendly Fire -33 Cogmind --------- Core Integrity 0/1450 Matter 204/300 Energy 98/100 System Corruption 0% Temperature Cool (0) Movement Core (50) Location -2/Section 7 Parts ------- > --- POWER (1) -------- (None) > --- PROPULSION (7) --- (None) > --- UTILITY (13) ----- Machine Analyzer Advanced Terrain Scan Processor Improved System Guard > --- WEAPON (2) ------- (None) > --- INVENTORY (5) ---- Micro Antimatter Reactor Experimental Power Amplifier Null Cannon Enhanced Force Lance Peak State ------------ > --- POWER ------------ Light Quantum Reactor > --- PROPULSION ------- Q-thruster Q-thruster Q-thruster Q-thruster Q-thruster Q-thruster Q-thruster > --- UTILITY ---------- Experimental Power Amplifier Medium Storage Unit Structural Scanner Machine Analyzer Advanced Sensor Array Advanced Terrain Scan Processor Cloaking Device Improved Powered Armor Experimental Shock Absorption System System Shield System Shield Improved System Shield Improved System Guard > --- WEAPON ----------- Longsword +1 > --- INVENTORY -------- Micro Antimatter Reactor Light Quantum Reactor Q-thruster Q-thruster Experimental Power Amplifier Hardened Medium Armor Plating Improved Medium Armor Plating Null Cannon Enhanced Force Lance [Rating: 142] Favorites ----------- Power Light Nuclear Core Engine Ion Engine Power Core Light Nuclear Core Reactor Cold Fusion Reactor Propulsion Q-thruster Treads Light Treads Leg Improved Titanium Leg Wheel Wheel Hover Unit Linear Gravjet Flight Unit Q-thruster Utility Advanced Terrain Scan Processor Device Improved Terrain Scanner Storage Medium Storage Unit Processor Advanced Terrain Scan Processor Hackware Improved System Shield Protection Core Shielding Weapon Longsword +1 Energy Gun Particle Gun Energy Cannon Null Cannon Ballistic Gun Gauss Rifle Ballistic Cannon Assault Cannon Launcher Rocket Launcher Slashing Weapon Longsword +1 Piercing Weapon Enhanced Force Lance Build | -11 -10 -10 -10 -9 -8 -7 -6 -5 -4 -3 -3 -2 -2 -2 ------- Run | Yrd Mat Min Exi Min Mat Fac Fac Fac Fac Res Tes Res Qua Sec Slots Evolved 16 | . . . . . 4 2 2 2 2 2 . 2 . . Power . | . . . . . . . . . . . . . . . Propulsion 5 | . . . . . 2 . . 1 . 1 . 1 . . Utility 11 | . . . . . 2 2 2 1 2 1 . 1 . . Weapon . | . . . . . . . . . . . . . . . Parts Attached 157 | 5 1 6 1 2 21 14 5 5 7 21 22 18 13 16 Power 10 | . . 1 . . 2 1 1 . . 2 1 1 . 1 Engine 2 | . . 1 . . 1 . . . . . . . . . Core 4 | . . . . . 1 1 . . . 1 1 . . . Reactor 4 | . . . . . . . 1 . . 1 . 1 . 1 Propulsion 43 | 2 . 2 . 1 7 1 . 1 . 6 4 7 5 7 Treads 2 | 1 . 1 . . . . . . . . . . . . Leg 5 | . . . . . 5 . . . . . . . . . Wheel 5 | 1 . 1 . 1 2 . . . . . . . . . Hover 3 | . . . . . . . . 1 . . . 2 . . Flight 28 | . . . . . . 1 . . . 6 4 5 5 7 Utility 74 | 1 1 . . 1 3 8 4 4 7 11 11 9 8 6 Device 45 | . . . . . 2 5 1 1 5 6 10 6 6 3 Storage 5 | 1 . . . 1 . 1 . 1 . 1 . . . . Processor 7 | . . . . . 1 1 . . 2 3 . . . . Hackware 4 | . . . . . . . 1 1 . 1 . 1 . . Protection 13 | . 1 . . . . 1 2 1 . . 1 2 2 3 Artifact . | . . . . . . . . . . . . . . . Weapon 30 | 2 . 3 1 . 9 4 . . . 2 6 1 . 2 Energy Gun 6 | 1 . 1 1 . 2 . . . . . 1 . . . Energy Cannon 1 | . . . . . . . . . . . 1 . . . Ballistic Gun 2 | 1 . . . . 1 . . . . . . . . . Ballistic Cannon 5 | . . 2 . . 3 . . . . . . . . . Launcher 3 | . . . . . 2 1 . . . . . . . . Special Weapon . | . . . . . . . . . . . . . . . Impact Weapon . | . . . . . . . . . . . . . . . Slashing Weapon 11 | . . . . . 1 3 . . . 1 4 1 . 1 Piercing Weapon 2 | . . . . . . . . . . 1 . . . 1 Special Melee Weapon . | . . . . . . . . . . . . . . . Unidentified Prototypes 20 | . . . . . 2 1 1 1 . 2 5 2 3 3 Parts Lost 40 | . . 2 1 . 8 . . . 4 2 2 . . 21 Power 4 | . . . 1 . 1 . . . . . 1 . . 1 Propulsion 14 | . . 1 . . 4 . . . . . . . . 9 Utility 18 | . . . . . 1 . . . 4 2 1 . . 10 Weapon 4 | . . 1 . . 2 . . . . . . . . 1 Highest Loss Streak 16 | . . 1 1 . 2 . . . 4 1 1 . . 16 To Critical Strikes . | . . . . . . . . . . . . . . . Average Slot Usage (%) 87 | . 85 99 99 85 91 76 80 78 79 94 98 94 93 64 Engine 3 | . . 13 13 . 4 . . . . . . . . . Core 1 | . . . . . 2 6 . . . 3 . 2 . . Reactor 1 | . . . . . . . 5 5 5 . 3 1 4 2 Treads 2 | . 14 14 14 3 . . . . . . . . . . Leg 5 | . . . . . 24 . . . . . . . . . Wheel 6 | . 14 14 14 24 9 . . . . . . . . . Flight 7 | . . . . . . 6 6 5 5 26 28 27 29 17 Device 12 | . . . . . 12 16 20 17 20 20 18 20 19 12 Storage 8 | . 14 14 14 14 9 6 6 5 5 4 4 4 4 2 Processor 8 | . . . . . 8 14 13 11 11 10 14 13 13 13 Hackware 4 | . . . . . . . 5 10 10 13 14 12 13 10 Protection 7 | . 14 14 14 14 4 6 6 5 5 4 4 4 4 2 Energy Gun 3 | . 14 8 8 14 5 . . . . . . . . . Ballistic Gun 1 | . 14 2 . . 3 1 . . . . . . . . Ballistic Cannon 5 | . . 17 19 14 6 . . . . . . . . . Slashing Weapon 4 | . . . . . 1 13 13 11 10 5 3 2 4 1 Naked Turns . | . . . . . . . . . . . . . . . Heaviest Build 96 | 8 9 21 21 89 95 96 38 48 49 49 48 51 54 51 Greatest Support 66 | 20 16 20 10 26 65 65 50 50 50 66 48 56 56 55 Greatest Overweight (x) 8 | . . 2 2 8 5 1 . . . 2 . 3 . 1 Average Overweight (x) . | . . 1 1 3 1 . . . . . . . . . Largest Inventory Capacity 25 | 8 8 8 8 25 25 25 10 15 15 15 10 10 10 10 Average Capacity 13 | 6 8 8 8 24 25 9 10 12 15 10 10 10 10 7 Most Carried 25 | 5 8 8 8 20 25 25 10 15 15 15 10 10 10 10 Average Carried 12 | 2 6 7 7 15 23 9 9 12 14 10 9 9 9 6 Final Capacity 25 | 8 8 8 8 25 25 10 10 15 15 10 10 10 10 5 Final Carried 25 | 5 8 8 8 20 25 10 10 15 14 10 10 10 9 4 Class Distribution -------------------- 26% | Mutant 22% | Scout 17% | Hacker-Scout 13% | Scavenger-Skirmisher 6% | Hacker-Sprinter 3% | Hacker-Ninja 3% | Scavenger-Assassin Dominant Class ---------------- Mutant | -10/Materials Mutant | -10/Mines Mutant | -10/Exiles Mutant | -9/Mines Scavenger-Skirmisher | -8/Materials Scout | -7/Factory Scout | -6/Factory Hacker-Scout | -5/Factory Hacker-Ninja | -4/Factory Hacker-Scout | -3/Research Hacker-Scout | -3/Testing Hacker-Sprinter | -2/Research Hacker-Sprinter | -2/Quarantine Hacker-Mutant | -2/Section 7 Resources | -11 -10 -10 -10 -9 -8 -7 -6 -5 -4 -3 -3 -2 -2 -2 ----------- Run | Yrd Mat Min Exi Min Mat Fac Fac Fac Fac Res Tes Res Qua Sec Matter Collected 2023 | 119 . 284 . 122 375 294 50 60 29 207 48 343 . 92 Remotely . | . . . . . . . . . . . . . . . Salvage Created 2161 | . . 254 . 175 698 95 114 200 29 207 . 269 . 120 Parts 120 | . . 17 . 14 46 2 2 8 5 11 . 6 . 9 Haulers Intercepted 5 | . . . . . 2 . 1 1 . . . 1 . . Recyclers Shooed 2 | . . . . 1 . 1 . . . . . . . . Parts Field Recycled . | . . . . . . . . . . . . . . . Retrieved Matter . | . . . . . . . . . . . . . . . Parts Self-Destructed . | . . . . . . . . . . . . . . . Prevented . | . . . . . . . . . . . . . . . Kills | -11 -10 -10 -10 -9 -8 -7 -6 -5 -4 -3 -3 -2 -2 -2 ------- Run | Yrd Mat Min Exi Min Mat Fac Fac Fac Fac Res Tes Res Qua Sec Combat Hostiles Destroyed 31 | . . 6 . 3 15 . . . . 4 . . . 3 Melee 8 | . . . . . 1 . . . . 4 . . . 3 Guns 5 | . . 3 . 1 1 . . . . . . . . . Cannons 13 | . . 3 . 2 8 . . . . . . . . . AOE 5 | . . . . . 5 . . . . . . . . . Classes Destroyed 13 | . . 3 . 3 4 1 . . . 1 . . . 1 Worker 1 | . . . . . . 1 . . . . . . . . Builder 6 | . . 1 . . 3 . . . 2 . . . . . Tunneler 4 | . . 1 . 1 1 . . . . . . 1 . . Hauler 5 | . . . . . 2 . 1 1 . . . 1 . . Recycler 5 | . . . . 2 . 1 . 1 . . . 1 . . Watcher 2 | . . . . . 1 . . . . 1 . . . . Swarmer 6 | . . . . 3 . . . . . 3 . . . . Cutter 3 | . . . . . . . . . . . . . . 3 Grunt 15 | . . 6 . . 9 . . . . . . . . . Sentry 5 | . . . . . 5 . . . . . . . . . Hunter 1 | . . . . . 1 . . . . . . . . . Programmer 1 | . . . . . . . . . . 1 . . . . Zionite 1 | . . . . 1 . . . . . . . . . . Best Kill Streak 9 | . . 2 . 3 9 2 1 2 2 3 . 2 . 3 Combat Bots Only 5 | . . 2 . 3 5 . . . . 3 . . . 3 Max Kills in Single Turn 2 | . . 1 . 1 2 1 1 1 1 1 . 1 . 1 Gunslinging . | . . . . . . . . . . . . . . . Exploded 1 | . . . . . 1 . . . . . . . . . Melee 1 | . . . . . 1 . . . . 1 . . . 1 Uniques/NPCs Destroyed . | . . . . . . . . . . . . . . . Combat | -11 -10 -10 -10 -9 -8 -7 -6 -5 -4 -3 -3 -2 -2 -2 -------- Run | Yrd Mat Min Exi Min Mat Fac Fac Fac Fac Res Tes Res Qua Sec Hostile Shots Fired 475 | . . 31 21 11 100 . 10 . . 37 84 . 3 178 Missed 191 | . . 4 9 5 19 . 5 . . 21 59 . 2 67 Damage Taken 5738 | . . 351 179 48 1318 . 45 . 264 295 334 . 56 2848 Core 1817 | . . 80 37 . 320 . . . . . 66 . . 1314 Absorbed by Shields . | . . . . . . . . . . . . . . . Redirected to Shielding 50 | . . 17 8 . 25 . . . . . . . . . Core Remaining (%) 86 | 100 . . . 53 41 100 100 100 100 . 94 . . . Volleys Fired 81 | . . 22 . 16 43 . . . . . . . . . Largest 2 | . . 2 . 2 2 . . . . . . . . . Hottest 109 | . . 88 . 109 109 . . . . . . . . . Shots Fired 144 | . . 44 . 32 68 . . . . . . . . . Gun 68 | . . 23 . 16 29 . . . . . . . . . Cannon 63 | . . 21 . 16 26 . . . . . . . . . Launcher 13 | . . . . . 13 . . . . . . . . . Special . | . . . . . . . . . . . . . . . Kinetic 86 | . . 26 . 16 44 . . . . . . . . . Thermal 18 | . . . . 16 2 . . . . . . . . . Explosive 13 | . . . . . 13 . . . . . . . . . Electromagnetic 27 | . . 18 . . 9 . . . . . . . . . Robot Hit Streak 9 | . . 5 . 3 9 . . . . . . . . . Robot Miss Streak 7 | . . 3 . 7 5 . . . . . . . . . Penetration Max 1 | . . . . . 1 . . . . . . . . . Secondary Targets . | . . . . . . . . . . . . . . . Shots Hit Robots 124 | . . 26 . 14 53 5 1 2 3 10 . 6 . 4 Core Hits 80 | . . 16 . 9 39 1 1 2 1 5 . 3 . 3 Critical Kills . | . . . . . . . . . . . . . . . Critical Parts Destroyed . | . . . . . . . . . . . . . . . Critical Strikes 4 | . . 1 . 1 2 . . . . . . . . . Blast 4 | . . 1 . 1 2 . . . . . . . . . Melee Attacks 95 | . . . . . 11 16 2 3 10 23 5 8 4 13 Impact . | . . . . . . . . . . . . . . . Slashing 80 | . . . . . 11 16 2 3 10 23 5 2 4 4 Piercing 15 | . . . . . . . . . . . . 6 . 9 Sneak Attacks 14 | . . . . . 1 3 1 2 3 . . 4 . . Combat Hostiles . | . . . . . . . . . . . . . . . Follow-up Attacks 1 | . . . . . . 1 . . . . . . . . Damage Inflicted 4899 | . . 436 . 316 1932 294 80 192 243 578 . 641 . 187 Guns 677 | . . 179 . 71 427 . . . . . . . . . Cannons 943 | . . 257 . 245 441 . . . . . . . . . Explosions 845 | . . . . . 845 . . . . . . . . . Melee 2434 | . . . . . 219 294 80 192 243 578 . 641 . 187 Ramming . | . . . . . . . . . . . . . . . Kinetic 1226 | . . 282 . 245 699 . . . . . . . . . Thermal 88 | . . . . 71 17 . . . . . . . . . Explosive 845 | . . . . . 845 . . . . . . . . . Electromagnetic 306 | . . 154 . . 152 . . . . . . . . . Impact . | . . . . . . . . . . . . . . . Slashing 1792 | . . . . . 219 294 80 192 243 578 . 98 . 88 Piercing 642 | . . . . . . . . . . . . 543 . 99 Highest Corruption 13 | . . . . . 3 . . . 13 1 . . . . Average Corruption 3 | . . . . . 2 . . . 13 1 . . . . Corruption Purged . | . . . . . . . . . . . . . . . Corruption Blocked . | . . . . . . . . . . . . . . . Effects 10 | . . . . . 9 . . . 1 . . . . . Matter Fused 3 | . . . . . 3 . . . . . . . . . Energy Discharges 2 | . . . . . 2 . . . . . . . . . Data Loss (minor) 1 | . . . . . . . . . 1 . . . . . Data Loss (major) 4 | . . . . . 4 . . . . . . . . . Overload Shots . | . . . . . . . . . . . . . . . Overflow Damage 361 | . . . . 3 32 115 . . 82 49 . 80 . . Projectiles 3 | . . . . 3 . . . . . . . . . . Explosions 32 | . . . . . 32 . . . . . . . . . Melee 326 | . . . . . . 115 . . 82 49 . 80 . . Knockbacks 9 | . . 1 . 4 4 . . . . . . . . . Impact . | . . . . . . . . . . . . . . . Kinetic 8 | . . 1 . 3 4 . . . . . . . . . Secondary 1 | . . . . 1 . . . . . . . . . . Self-Inflicted Damage 24 | . . . . . 24 . . . . . . . . . Shots 2 | . . . . . 2 . . . . . . . . . Rammed . | . . . . . . . . . . . . . . . Targets Rammed . | . . . . . . . . . . . . . . . Kicked . | . . . . . . . . . . . . . . . Crushed . | . . . . . . . . . . . . . . . Highest Temperature 462 | . . 252 . 165 242 . . . . 462 148 257 . 272 Average Temperature 76 | . . 77 . 55 68 . . . . 94 57 57 . 115 Received Heat Transfer 1090 | . . 216 . . 612 . 15 . . 49 45 . . 153 Effects 2 | . . 1 . . . . . . . 1 . . . . Energy Bleed 1 | . . 1 . . . . . . . . . . . . Damage (minor) 1 | . . . . . . . . . . 1 . . . . Siege Activations . | . . . . . . . . . . . . . . . Robots Corrupted . | . . . . . . . . . . . . . . . Combat Hostiles . | . . . . . . . . . . . . . . . Parts Fried 1 | . . . . . 1 . . . . . . . . . Impact Corruptions . | . . . . . . . . . . . . . . . Robots Melted . | . . . . . . . . . . . . . . . Combat Hostiles . | . . . . . . . . . . . . . . . Parts Melted . | . . . . . . . . . . . . . . . Heat Transferred 222 | . . . . 185 37 . . . . . . . . . Parts Sabotaged . | . . . . . . . . . . . . . . . Parts Stolen . | . . . . . . . . . . . . . . . Parts Stripped . | . . . . . . . . . . . . . . . Power Chain Reactions . | . . . . . . . . . . . . . . . Alert | -11 -10 -10 -10 -9 -8 -7 -6 -5 -4 -3 -3 -2 -2 -2 ------- Run | Yrd Mat Min Exi Min Mat Fac Fac Fac Fac Res Tes Res Qua Sec Peak Influence 421 | . 15 101 . 86 255 97 90 98 66 258 421 246 275 369 Initial 231 | . . 5 . . . 54 14 44 47 5 61 231 72 154 Average 89 | . 8 48 . 77 115 36 24 59 50 77 226 144 218 238 Maximum Alert Level 2 | . . . . . 1 . . . . 1 2 1 1 1 Low Security (%) 86 | 100 100 100 . 100 78 100 100 100 100 94 53 67 24 42 Level 1 13 | . . . . . 21 . . . . 5 35 32 75 57 Level 2 . | . . . . . . . . . . . 11 . . . Level 3 . | . . . . . . . . . . . . . . . Level 4 . | . . . . . . . . . . . . . . . Level 5 . | . . . . . . . . . . . . . . . High Security . | . . . . . . . . . . . . . . . Max Security . | . . . . . . . . . . . . . . . Squads Dispatched 21 | . 2 1 . . 4 1 1 . 2 1 6 1 1 1 Investigation 4 | . 1 1 . . 1 . . . 1 . . . . . Extermination 1 | . . . . . . . . . . . 1 . . . Reinforcement 9 | . 1 . . . . 1 1 . 1 1 1 1 1 1 Assault 2 | . . . . . . . . . . . 2 . . . Garrison 5 | . . . . . 3 . . . . . 2 . . . Intercept . | . . . . . . . . . . . . . . . Searches Triggered . | . . . . . . . . . . . . . . . Construction Impeded 1 | . . . . . . . . . 1 . . . . . Haulers Reinforced 1 | . . . . . . . . . . . . 1 . . Active Scanning Responses . | . . . . . . . . . . . . . . . Cargo Convoy Interrupts . | . . . . . . . . . . . . . . . Stealth | -11 -10 -10 -10 -9 -8 -7 -6 -5 -4 -3 -3 -2 -2 -2 --------- Run | Yrd Mat Min Exi Min Mat Fac Fac Fac Fac Res Tes Res Qua Sec Distress Signals 17 | . . . . . 5 . . . . 3 4 . 1 4 Communications Jammed . | . . . . . . . . . . . . . . . Distress Signals . | . . . . . . . . . . . . . . . Times Spotted 140 | . 1 6 3 4 27 1 4 . . 18 28 . 6 42 Peak Tracking Total 18 | . 1 2 6 4 5 2 2 . . 10 16 . 4 18 Tactical Retreats 15 | . . . . . . . 1 . . 5 5 . 1 3 Traps | -11 -10 -10 -10 -9 -8 -7 -6 -5 -4 -3 -3 -2 -2 -2 ------- Run | Yrd Mat Min Exi Min Mat Fac Fac Fac Fac Res Tes Res Qua Sec Traps Triggered 7 | . 1 . . . 2 . 1 . . . 1 . 1 1 Indirectly . | . . . . . . . . . . . . . . . Trap Hack Attempts . | . . . . . . . . . . . . . . . Triggered . | . . . . . . . . . . . . . . . Disarmed . | . . . . . . . . . . . . . . . Reprogrammed . | . . . . . . . . . . . . . . . Reused . | . . . . . . . . . . . . . . . Traps Extracted . | . . . . . . . . . . . . . . . Installed 3 | . . 3 . . . . . . . . . . . . Triggered . | . . . . . . . . . . . . . . . Machines | -11 -10 -10 -10 -9 -8 -7 -6 -5 -4 -3 -3 -2 -2 -2 ---------- Run | Yrd Mat Min Exi Min Mat Fac Fac Fac Fac Res Tes Res Qua Sec Machines Disabled 12 | . . . . . 3 1 1 . . . 3 . 3 1 Max in Single Turn 1 | . . . . . 1 1 1 . . . 1 . 1 1 Garrison Access 3 | . . . . . . 1 1 . 1 . . . . . Machines Repaired . | . . . . . . . . . . . . . . . Machines Dismantled . | . . . . . . . . . . . . . . . Machines Sabotaged . | . . . . . . . . . . . . . . . Overloaded Fab Kills . | . . . . . . . . . . . . . . . Hacking | -11 -10 -10 -10 -9 -8 -7 -6 -5 -4 -3 -3 -2 -2 -2 --------- Run | Yrd Mat Min Exi Min Mat Fac Fac Fac Fac Res Tes Res Qua Sec Machines Accessed 50 | . . 1 1 . 6 6 7 4 3 7 5 2 6 2 Terminals 34 | . . . . . 4 4 4 3 1 4 4 2 6 2 Fabricators 4 | . . . . . . . 2 . 1 1 . . . . Repair Stations 1 | . . . . . 1 . . . . . . . . . Recycling Units . | . . . . . . . . . . . . . . . Scanalyzers 3 | . . . . . 1 1 . 1 . . . . . . Garrison Access 6 | . . . . . . 1 1 . 1 2 1 . . . Total Hacks 148 | . . 1 1 . 21 18 17 13 4 21 14 14 21 3 Successful 55 | . . 1 1 . 11 9 4 3 2 6 3 6 7 2 Failed 93 | . . . . . 10 9 13 10 2 15 11 8 14 1 Catastrophic 25 | . . . . . 2 . 4 1 1 7 5 . 5 . Database Lockouts . | . . . . . . . . . . . . . . . Manual 58 | . . . 1 . 6 5 7 6 2 5 7 8 11 . Terminals 107 | . . . . . 15 9 10 6 2 14 13 14 21 3 Fabricators 9 | . . . . . . . 5 . 1 3 . . . . Repair Stations 2 | . . . . . 2 . . . . . . . . . Recycling Units . | . . . . . . . . . . . . . . . Scanalyzers 19 | . . . . . 4 8 . 7 . . . . . . Garrison Access 9 | . . . . . . 1 2 . 1 4 1 . . . Terminal Hacks 22 | . . 1 1 . 4 . . . . 3 3 4 4 2 Record 5 | . . . . . . . . . . 1 1 . 3 . Robot Analysis 1 | . . . . . . . . . . 1 . . . . Open Door 3 | . . 1 . . . . . . . . . . . 2 Level Access Points 1 | . . . . . . . . . . 1 . . . . Branch Access Points 1 | . . . . . . . . . . . 1 . . . Emergency Access Points 1 | . . . . . 1 . . . . . . . . . Unreport Threat 1 | . . . . . . . . . . . . 1 . . Locate Traps 3 | . . . . . 2 . . . . . . 1 . . Zone Layout 4 | . . . . . 1 . . . . . . 2 1 . Derelict Proto ID Bank 1 | . . . 1 . . . . . . . . . . . Protovariant Controls 1 | . . . . . . . . . . . 1 . . . Fabricator Hacks 3 | . . . . . . . 1 . 1 1 . . . . Build 3 | . . . . . . . 1 . 1 1 . . . . Repair Station Hacks 1 | . . . . . 1 . . . . . . . . . Scan Component 1 | . . . . . 1 . . . . . . . . . Recycling Unit Hacks . | . . . . . . . . . . . . . . . Scanalyzer 13 | . . . . . 4 6 . 3 . . . . . . Insert Component 7 | . . . . . 2 3 . 2 . . . . . . Analyze 6 | . . . . . 2 3 . 1 . . . . . . Garrison Access Hacks 3 | . . . . . . 1 1 . 1 . . . . . Seal Access 3 | . . . . . . 1 1 . 1 . . . . . Unauthorized Hacks 13 | . . . . . 2 2 2 . . 2 . 2 3 . Terminals 13 | . . . . . 2 2 2 . . 2 . 2 3 . Assimilate 2 | . . . . . . . 1 . . . . . 1 . Botnet 11 | . . . . . 2 2 1 . . 2 . 2 2 . Fabricators . | . . . . . . . . . . . . . . . Repair Stations . | . . . . . . . . . . . . . . . Recycling Units . | . . . . . . . . . . . . . . . Scanalyzers . | . . . . . . . . . . . . . . . Garrison Access . | . . . . . . . . . . . . . . . Data Cores Recovered . | . . . . . . . . . . . . . . . Used . | . . . . . . . . . . . . . . . Hacking Detections 40 | . . . . . 6 5 5 4 1 7 5 2 5 . Full Trace Events 2 | . . . . . 1 . . . 1 . . . . . Feedback Events . | . . . . . . . . . . . . . . . Feedback Blocked . | . . . . . . . . . . . . . . . Robot Schematics Acquired 2 | . . . . . . . . . . . 2 . . . Robots Built 6 | . . . . . . . 1 . 3 2 . . . . Authchips . | . . . . . . . . . . . . . . . Time 300 | . . . . . . . 81 . 169 50 . . . . Total Robot Build Rating 29 | . . . . . . . 1 . 18 10 . . . . Part Schematics Acquired 8 | . . . . . 2 3 . 1 . . 2 . . . Parts Built . | . . . . . . . . . . . . . . . Authchips . | . . . . . . . . . . . . . . . Time . | . . . . . . . . . . . . . . . Total Part Build Rating . | . . . . . . . . . . . . . . . Parts Repaired . | . . . . . . . . . . . . . . . Time . | . . . . . . . . . . . . . . . Parts Recycled . | . . . . . . . . . . . . . . . Recycled Matter . | . . . . . . . . . . . . . . . Retrieved Matter . | . . . . . . . . . . . . . . . Retrieved Components . | . . . . . . . . . . . . . . . Parts Scanalyzed 6 | . . . . . 2 3 . 1 . . . . . . Part Schematics Acquired 6 | . . . . . 2 3 . 1 . . . . . . Parts Damaged 1 | . . . . . . . . 1 . . . . . . Bothacking | -11 -10 -10 -10 -9 -8 -7 -6 -5 -4 -3 -3 -2 -2 -2 ------------ Run | Yrd Mat Min Exi Min Mat Fac Fac Fac Fac Res Tes Res Qua Sec Used RIF Installer . | . . . . . . . . . . . . . . . Robots Hacked . | . . . . . . . . . . . . . . . Non-combat . | . . . . . . . . . . . . . . . Combat . | . . . . . . . . . . . . . . . Robot Hacks Applied . | . . . . . . . . . . . . . . . Relay Couplers Released . | . . . . . . . . . . . . . . . Fabnet Peak Effective % . | . . . . . . . . . . . . . . . Robots Rewired . | . . . . . . . . . . . . . . . Allies Hacked . | . . . . . . . . . . . . . . . Hacks Repelled . | . . . . . . . . . . . . . . . Allies | -11 -10 -10 -10 -9 -8 -7 -6 -5 -4 -3 -3 -2 -2 -2 -------- Run | Yrd Mat Min Exi Min Mat Fac Fac Fac Fac Res Tes Res Qua Sec Total Allies 8 | . . . . . . . 2 . 3 2 . . 1 . Largest Group 4 | . . . . . . . 1 1 4 3 . . 1 . Highest-Rated Group 100 | . . . . . . . 10 10 100 38 . . 26 . Highest-Rated Ally 30 | . . . . . . . 10 10 30 14 . . 26 . Total Orders . | . . . . . . . . . . . . . . . Ally Attacks 3 | . . . . . . . . . 2 1 . . . . Total Damage 40 | . . . . . . . . . 40 . . . . . Kills 1 | . . . . . . . . . 1 . . . . . Allies Corrupted . | . . . . . . . . . . . . . . . Allies Melted . | . . . . . . . . . . . . . . . Intel | -11 -10 -10 -10 -9 -8 -7 -6 -5 -4 -3 -3 -2 -2 -2 ------- Run | Yrd Mat Min Exi Min Mat Fac Fac Fac Fac Res Tes Res Qua Sec Robot Analysis Total 1 | . . . . . . . . . . 1 . . . . Derelict Logs Recovered 2 | . . 1 . 1 . . . . . . . . . . Drone Launches . | . . . . . . . . . . . . . . . Drone Recoveries . | . . . . . . . . . . . . . . . Exploration | -11 -10 -10 -10 -9 -8 -7 -6 -5 -4 -3 -3 -2 -2 -2 ------------- Run | Yrd Mat Min Exi Min Mat Fac Fac Fac Fac Res Tes Res Qua Sec Turns Passed 6061 | 94 33 740 360 402 1247 781 552 205 278 441 278 209 185 256 Spaces Moved 8487 | 54 29 554 311 236 623 1303 1025 366 488 1088 706 509 634 561 Core 55 | 1 . . . . . . . . . . . . . 54 Treads 125 | 49 . 76 . . . . . . . . . . . . Legs 349 | . . . . . 344 5 . . . . . . . . Wheels 1337 | 4 29 478 311 236 279 . . . . . . . . . Hover 2 | . . . . . . . . . . . . 2 . . Flight 6619 | . . . . . . 1298 1025 366 488 1088 706 507 634 507 Fastest Speed 20 | 50 100 80 95 95 116 50 50 50 50 25 25 22 22 20 Average Speed 58 | 153 100 117 100 141 165 50 50 50 50 27 25 24 22 29 Slowest Speed 290 | 160 100 240 110 200 270 195 50 50 50 194 25 290 25 80 Overloaded Moves 57 | . . . . . . . . . . . . . . 57 Propulsion Burnouts . | . . . . . . . . . . . . . . . Robots Hopped 39 | . . . . . . 5 1 8 1 3 12 . 5 4 Cave-ins Triggered 1 | . . . . . . . . . 1 . . . . . Teleports 3 | . . . . . . . . . . . . . 1 2 Exploration Rate (%) 39 | 4 12 98 61 54 51 43 28 6 14 28 68 14 63 53 Regions Visited 14 Branch Regions 6 Pre-discovered Areas 1 | . . . . 1 . . . . . . . . . . Known Exits Taken 5 | . . . . . . 1 1 1 1 . 1 . . . Unknown Exits Taken 9 | 1 1 1 1 1 1 . . . . 1 . 1 1 . Scrap Searched 3 | . . 1 . 2 . . . . . . . . . . Spaces Dug 30 | . . . . 1 2 6 . 1 5 8 2 2 1 2 Terrain Destroyed 120 | . . 4 . 1 88 6 . 1 5 8 2 2 1 2 Melee 29 | . . . . . 2 6 . 1 5 8 2 2 1 2 Projectile 11 | . . 4 . 1 6 . . . . . . . . . AOE 80 | . . . . . 80 . . . . . . . . . Terrain Rammed . | . . . . . . . . . . . . . . . Walls Destroyed . | . . . . . . . . . . . . . . . Machines Disabled . | . . . . . . . . . . . . . . . Actions | -11 -10 -10 -10 -9 -8 -7 -6 -5 -4 -3 -3 -2 -2 -2 --------- Run | Yrd Mat Min Exi Min Mat Fac Fac Fac Fac Res Tes Res Qua Sec Total 9311 | 63 32 601 360 271 757 1410 1065 376 506 1209 791 578 665 627 Wait 279 | . . 4 40 4 24 50 10 . 2 50 52 14 7 22 Move 8400 | 53 28 553 310 235 622 1292 1022 351 485 1082 681 508 624 554 Hop 34 | . . . . . . 5 1 6 1 2 12 . 4 3 Pick Up 114 | 5 3 7 3 12 23 17 8 7 2 9 3 10 2 3 Fast Attach 78 | 5 1 2 . 1 8 1 3 3 2 14 11 10 7 10 Attach 48 | . . 2 . . 9 6 2 1 3 5 5 1 5 9 Detach 17 | . . . . . . . 1 . 1 3 4 1 3 4 Swap 39 | . . 2 1 1 4 7 . 1 2 3 6 7 4 1 Drop 124 | . . 6 6 2 13 21 9 4 . 19 12 19 5 8 Fire 81 | . . 22 . 16 43 . . . . . . . . . Melee 87 | . . . . . 11 11 2 3 8 22 5 8 4 13 Ram . | . . . . . . . . . . . . . . . Kick . | . . . . . . . . . . . . . . . Crush . | . . . . . . . . . . . . . . . Escape Stasis 7 | . . . . . . . 7 . . . . . . . Rewire . | . . . . . . . . . . . . . . . Trap 3 | . . 3 . . . . . . . . . . . . Miscellaneous . | . . . . . . . . . . . . . . . Route ------- -11/Scrapyard -10/Materials -10/Mines (discovered 3 exits: [*Mat x2] / *Exi) -10/Exiles -9/Mines -8/Materials -7/Factory -6/Factory -5/Factory -4/Factory -3/Research (discovered 4 exits: Res x3 / *Tes) -3/Testing -2/Research -2/Quarantine -2/Section 7 History --------- Turn | Location | Event 27 | -11/Scrapyard | Discovered new exit (range 15) 95 | -11/Scrapyard | Entered Materials 113 | -10/Materials | Discovered new exit (range 12) 128 | -10/Materials | Entered Mines 205 | -10/Mines | Found a hidden stash of uninstalled traps 217 | -10/Mines | Learned Materials terminal intel 235 | -10/Mines | Discovered new exit (range 16) 270 | -10/Mines | Met a Derelict shopkeep closing up shop 301 | -10/Mines | Build established: Mutant 360 | -10/Mines | Found a damaged Exp. Sensor Array with a note attached 362 | -10/Mines | Found Prototype Device 515 | -10/Mines | Discovered new exit (range 7) 862 | -10/Mines | Deemed a non-threat by the Exiles lab entrance 862 | -10/Mines | Discovered new exit (range 5) 868 | -10/Mines | Entered Exiles 896 | -10/Exiles | Met 8R-AWN 914 | -10/Exiles | Met EX-HEX 944 | -10/Exiles | Met EX-BIN 960 | -10/Exiles | Aligned with FarCom system 961 | -10/Exiles | Given EX-Vault access code 986 | -10/Exiles | Opened EX-Vault 995 | -10/Exiles | Found Flying Fortress v7 1000 | -10/Exiles | Found Skeleton Box 1004 | -10/Exiles | Found Longsword +1 1025 | -10/Exiles | Warned to stay clear of 0b10 Research branches 1034 | -10/Exiles | Exiles lab attacked by MAIN.C 1089 | -10/Exiles | Discovered new exit (range 14) 1228 | -10/Exiles | Stole three prototypes: Flying Fortress v7, Skeleton Box, Longsword +1 1228 | -10/Exiles | Entered Mines 1268 | -9/Mines | Received a Rocket Launcher from a helpful Derelict 1615 | -9/Mines | Learned 2 Materials zone layouts 1617 | -9/Mines | Discovered new exit (range 9) 1624 | -9/Mines | Learned location of Storage (-7) 1630 | -9/Mines | Entered Materials 1630 | -8/Materials | Evolved 4 slots: Propulsion x2, Utility x2 1632 | -8/Materials | Loaded intel: 12 terminal locations 1935 | -8/Materials | Build established: Scavenger-Skirmisher 2223 | -8/Materials | Garrison activated, responded to threat 2660 | -8/Materials | Core integrity fell below 50% 2802 | -8/Materials | Discovered new exit (range 11) 2877 | -8/Materials | Entered Factory 2877 | -7/Factory | Evolved 2 slots: Utility x2 2879 | -7/Factory | FarCom data flow suspended 2897 | -7/Factory | Identified Exp. Sensor Array 3169 | -7/Factory | Build established: Scout 3623 | -7/Factory | Discovered new exit (range 15) 3654 | -7/Factory | Identified exit to Factory 3658 | -7/Factory | Entered another Factory area 3658 | -6/Factory | Evolved 2 slots: Utility x2 3766 | -6/Factory | Fabricated R-06 Scavenger? 4194 | -6/Factory | Discovered new exit (range 13) 4209 | -6/Factory | Identified exit to Factory 4210 | -6/Factory | Entered another Factory area 4210 | -5/Factory | Accompanied by 1 ally 4210 | -5/Factory | Evolved 2 slots: Propulsion x1, Utility x1 4280 | -5/Factory | Discovered new exit (range 13) 4295 | -5/Factory | Identified exit to Factory 4415 | -5/Factory | Entered another Factory area 4415 | -4/Factory | Accompanied by 1 ally 4415 | -4/Factory | Evolved 2 slots: Utility x2 4518 | -4/Factory | Build established: Hacker-Scout 4580 | -4/Factory | Discovered new exit (range 11) 4586 | -4/Factory | Identified exit to Research 4609 | -4/Factory | Fabricated B-60 Warrior? 4665 | -4/Factory | Crushed by falling debris 4665 | -4/Factory | System corruption reached 10% 4693 | -4/Factory | Entered Research 4693 | -3/Research | Accompanied by 1 ally 4693 | -3/Research | Evolved 2 slots: Propulsion x1, Utility x1 4696 | -3/Research | Lost 4 parts (4u) 4807 | -3/Research | Fabricated E-15 Imp? 4914 | -3/Research | Found Enh. Force Lance 4944 | -3/Research | Identified exit to Research 4954 | -3/Research | Found Prototype Processor 4954 | -3/Research | Identified Exp. Target Analyzer 5008 | -3/Research | Found Prototype Processor 5008 | -3/Research | Identified Spectral Analyzer 5132 | -3/Research | Discovered new exit (range 4) 5134 | -3/Research | Entered Testing 5144 | -3/Testing | Found Prototype Energy Gun 5144 | -3/Testing | Identified Hyp. EM Gauss Rifle 5159 | -3/Testing | Found Prototype Energy Cannon 5159 | -3/Testing | Identified Null Cannon 5173 | -3/Testing | Spotted Alpha 7 5252 | -3/Testing | Protovariant out of control (PY-EMRFBKYTCS) 5252 | -3/Testing | Unleashed a protovariant (PY-EMRFBKYTCS) 5254 | -3/Testing | Protovariant out of control (PX-YH00RAF381) 5295 | -3/Testing | Garrison activated, responded to threat 5334 | -3/Testing | Found Prototype Device 5334 | -3/Testing | Identified Exp. Hardlight Generator 5339 | -3/Testing | Spotted Striker 5339 | -3/Testing | Spotted Striker 5382 | -3/Testing | Spotted PX-YH00RAF381 5411 | -3/Testing | Discovered exit to Research (range 5) 5412 | -3/Testing | Entered Research 5412 | -2/Research | Evolved 2 slots: Propulsion x1, Utility x1 5538 | -2/Research | Spotted B-90 Cyclops 5562 | -2/Research | Found Imp. Powered Armor 5584 | -2/Research | Found Prototype Device 5584 | -2/Research | Identified Exp. Shield Generator 5603 | -2/Research | Discovered new exit (range 17) 5613 | -2/Research | Found Prototype Device 5613 | -2/Research | Identified Exp. Shock Absorption System 5621 | -2/Research | Entered Quarantine 5653 | -2/Quarantine | Found Alien Artifact 5653 | -2/Quarantine | Identified Subatomic Replicator 5672 | -2/Quarantine | Found Alien Artifact 5672 | -2/Quarantine | Identified Terrabomb 5672 | -2/Quarantine | Used Terrabomb 5689 | -2/Quarantine | Found Alien Artifact 5689 | -2/Quarantine | Identified Hpw. Transdimensional Reconstructor 5689 | -2/Quarantine | Warped through subspace 5769 | -2/Quarantine | Spotted Fortress 5785 | -2/Quarantine | Discovered new exit (range 6) 5806 | -2/Quarantine | Entered Section 7 5809 | -2/Section 7 | Build established: Hacker-Sprinter 5810 | -2/Section 7 | Found Alien Artifact 5810 | -2/Section 7 | Identified Integrated Mediator 5810 | -2/Section 7 | Installed Integrated Mediator, increased core attachment efficiency 5943 | -2/Section 7 | Spotted S7 Guard 5966 | -2/Section 7 | Spotted Alpha 7 5966 | -2/Section 7 | Spotted Alpha 7 5969 | -2/Section 7 | Used Subatomic Replicator to replicate Q-thruster 5975 | -2/Section 7 | Spotted S7 Guard 6006 | -2/Section 7 | Spotted Executioner 6006 | -2/Section 7 | Spotted Executioner 6012 | -2/Section 7 | Spotted Striker 6012 | -2/Section 7 | Spotted Striker 6016 | -2/Section 7 | Lost 16 parts (1p8n6u1w) 6034 | -2/Section 7 | Found Alien Artifact 6034 | -2/Section 7 | Identified Transdimensional Reconstructor 6034 | -2/Section 7 | Warped through subspace 6038 | -2/Section 7 | Core integrity fell below 50% 6046 | -2/Section 7 | Spotted Executioner 6053 | -2/Section 7 | Found Transdimensional Reconstructor 6056 | -2/Section 7 | Core integrity fell below 20% 6056 | -2/Section 7 | Spotted Executioner 6059 | -2/Section 7 | Warped through subspace 6062 | -2/Section 7 | Destroyed by H-88 Terminator with KE Penetrator Last Messages --------------- 06038_ W-44 Eye sends out distress signal. 06045_ Penetrated by Slug. 06045_ Slug penetrates FTL Facilitator. 06045_ System Shield destroyed. 06047_ Penetrated by Slug. 06048_ Slug penetrates Reinforced Barrier. 06048_ Door Terminal disabled. 06050_ Slug penetrates Door Terminal. 06050_ Door Terminal disabled. 06050_ Penetrated by Slug. 06053_ Dropped Exp. Power Amplifier. 06053_ Acquired Transdimensional Reconstructor. 06055_ Slug penetrates Reinforced Barrier. 06055_ Penetrated by Slug. 06055_ Slug penetrates Reinforced Barrier. 06055_ Slug penetrates Wing Frame. 06055_ Penetrated by Slug. 06058_ System Shield destroyed. 06059_ Warped through subspace. 06059_ K-01 Serf cleans the Power Cell. Map ----- +----------------------------------------------------+ | ?????????????????"" " "" "??" | | ????????????????? " " " """" "??" | | ?????????????? " " "?? | | ????????????????? " """"""" | | ????????????????????" " "????" | | #???????????????????"""" " """"""" | | ###???????? """""" | | ""#??????? | | ""#????? " | | T"#????" """""" """ | | ""#????" "????"""" " " | | ""#????" """""" """"" ?? | | ###????" "?" """" " " ?? | | #??????" """"" " ?????? | | #??????" " "??????? | | #??????" " """"""""" | | ???????" """ " " " " | | ???????" "" T " " " " | | ??????#" """" c " " " "" | | ??????# "??" "" | | ??????#" """" "" """ "" | | ??????#"" A """ " | | ??????#""" " " "" """"""""" | | ??????#""" """" " ""???????" | | ????###""" "?" """ c"" "????????" | | ##### # """""" @ "??????? | | / ""????? | | / h h k "???? | | / """"" "??? | | / k "???" ?? | | ##### # ??" A | | #?###""" """?" g | | #???#""" ??? | | #???#""" ??? | | #???#"" ???? ??? | | #???#" ???? """???????????? | | #????? """""""""?????? ##?????????????? | | #?????? """"""?????????? ???????????????? | | #?????######???????????????#???????????????????? | | #??????????????????????????????????????????????? | | ###??????????????????????????????????????????????? | | ?????????????????????????????????????????????????? | | ?????????????????????????????????????????????????? | | ?????????????????????????????????????????????????? | | ?????????????????????????????????????????????????? | | ?????????????????????????????????????????????????? | | ?????????????????????????????????????????????????? | | ?????????????????????????????????????????????????? | | ?????????????????????????????????????????????????? | | ?????????????????????????????????????????????????? | +----------------------------------------------------+ Best States ------------- Heat Dissipation 49 Energy Generation 33 Energy Capacity 315 Matter Stores 300 Matter Capacity 300 Sight Range 16 Robot Scan Range 20 Terrain Scan Range 16 Terrain Scan Density 210 Jamming Range 12 Cloak Strength 2 Power Amplification 40 Corruption Containment 12 Armor Coverage 625 Resistance: TH 10 Core Shielding 20 Evasion (%) 75 Recoil Reduction 1 Defensive Hacking 34 Item Schematics ----------------- Shock Bomb Launcher | -8/Materials | Scanalyzed Hacking Suite | -8/Materials | Scanalyzed Imp. Sensor Array | -7/Factory | Scanalyzed Trap Scanner | -7/Factory | Scanalyzed Imp. Flight Unit | -7/Factory | Scanalyzed Imp. Proton Missile Launcher | -5/Factory | Scanalyzed Adv. Matter Compressor | -3/Testing | Archive Exp. Target Analyzer | -3/Testing | Archive Robot Schematics ------------------ A-27 Freighter | -3/Testing | Archive A-15 Conveyor | -3/Testing | Archive Fabricated ------------ R-06 Scavenger | x1 | -6/Factory | Preloaded B-60 Warrior | x3 | -4/Factory | Preloaded E-15 Imp | x2 | -3/Research | Preloaded Alien Tech Used ----------------- Subatomic Replicator Terrabomb High-powered Transdimensional Reconstructor Integrated Mediator Transdimensional Reconstructor Achievements -------------- None Challenges ------------ None Game ------ Seed CouplerHeartMace Manual? 0 Play Time 03:11:31 Cumulative 109.2 hours Start 2024.05.22 @ 11:41:34 End 2024.05.23 @ 04:34:01 Sessions 5 Manual Loads 0 Difficulty Rogue Special Mode None Game No. 56 Rogue 56 Adventurer 0 Explorer 0 Win Type - Total 4 Types 4/0/0/0/0/0/0/0/0 Lore% 52 Gallery% 63 Achievement% 46 Wizard Run 0 Options --------- Layout 0 ASCII 1 Keyboard 0 Movement Mouse Keybinds 0 Fullscreen 1 Font 20/X11 Map View 66x50 Zoom Use 0% Tactical HUD 1 Map Filters NONE Filters NONE Steam 1 RUN: 91ebbbc3-96b2-4059-a33b-4abec1362d58